bitfinex/quotes_BTCUSD_20250212
["timestamp","ask_amount","ask_price","bid_price","bid_amount"]
[1739368376690,0.10250365,94849.0,94833.0,0.00717853]
[1739368376878,0.10250365,94849.0,94837.0,0.158166]
[1739368377089,0.10250365,94849.0,94838.0,0.158164]
[1739368377205,0.10250365,94849.0,94839.0,0.158162]
[1739368377670,0.10250365,94849.0,94834.0,0.00105431]
[1739368377991,0.10350365,94849.0,94833.0,0.00717853]
[1739368378216,0.10350365,94849.0,94841.0,0.158157]
[1739368378432,0.1316,94876.0,94859.0,0.158128]
[1739368378647,0.07761756,94890.0,94850.0,0.14326236]
[1739368378862,0.10250365,94889.0,94864.0,0.15812]
[1739368379064,0.15131751,94888.0,94864.0,0.15812]
[1739368379280,0.15,94886.0,94865.0,0.00390036]
[1739368379508,0.15,94884.0,94865.0,0.00390036]
[1739368379717,0.10250365,94883.0,94858.0,0.0005325]
[1739368379931,0.10250365,94883.0,94861.0,0.158125]
[1739368380138,0.15,94882.0,94859.0,0.21475456]
[1739368380354,0.00044409,94884.0,94847.0,0.210865]
[1739368380355,0.15,94880.0,94862.0,0.00390796]
[1739368380557,0.15,94878.0,94860.0,0.16204003]
[1739368380762,0.15,94876.0,94863.0,0.00390543]
[1739368380969,0.00022387,94865.0,94861.0,0.00391049]
[1739368381216,0.00022387,94865.0,94864.0,0.00390289]
[1739368381444,0.00022387,94865.0,94848.0,0.00053246]
[1739368381657,0.00022387,94865.0,94864.0,0.00390289]
[1739368382083,0.00022387,94865.0,94850.0,0.210858]
[1739368382327,0.10272752,94865.0,94839.0,0.0001066]
[1739368382607,0.10472752,94865.0,94851.0,0.00393584]
[1739368382815,0.10382133,94864.0,94839.0,0.0001066]
[1739368383028,0.1278,94863.0,94852.0,0.00725748]
[1739368383234,0.10250365,94862.0,94839.0,0.0001066]
[1739368383512,0.10250365,94862.0,94838.0,0.158163]
[1739368383746,0.0013178,94861.0,94838.0,0.158163]
[1739368383988,0.10250365,94860.0,94839.0,0.00731933]
[1739368384218,0.10250365,94860.0,94844.0,0.158153]
[1739368384685,0.01915493,94861.0,94838.0,0.00053311]
[1739368384925,0.01915493,94861.0,94840.0,0.26920832]
[1739368385183,0.00959488,94859.0,94841.0,0.00053287]
[1739368385412,0.00959488,94859.0,94847.0,0.158148]
[1739368385647,0.00959488,94859.0,94844.0,0.210871]
[1739368385883,0.00959488,94859.0,94852.0,0.158139]
[1739368386127,0.00959488,94859.0,94842.0,0.0005329]
[1739368386369,0.10250365,94858.0,94839.0,0.00735091]
[1739368386626,0.13125346,94858.0,94843.0,0.00339869]
[1739368386854,0.13125346,94858.0,94834.0,0.158169]
[1739368387089,0.13125346,94858.0,94831.0,0.158175]
[1739368387337,0.13125346,94858.0,94835.0,0.00395132]
[1739368387575,0.01915493,94857.0,94832.0,0.00395893]
[1739368387812,0.0788,94854.0,94818.0,0.13125757]
[1739368388048,0.10382169,94853.0,94823.0,0.158189]
[1739368388524,0.10382169,94853.0,94824.0,0.00397921]
[1739368389109,0.10382169,94853.0,94822.0,0.15819]
[1739368389212,0.04974876,94852.0,94825.0,0.00397668]
[1739368389440,0.10382169,94851.0,94825.0,0.00397668]
[1739368389947,0.02059088,94847.0,94825.0,0.00397668]
[1739368390192,0.07463901,94852.0,94826.0,0.00053356]
[1739368390454,0.07463901,94852.0,94831.0,0.210901]
[1739368390712,0.01915493,94846.0,94845.0,0.158152]
[1739368391177,0.01915493,94846.0,94845.0,0.16154624]
[1739368392028,0.01915493,94846.0,94845.0,0.00339424]
[1739368392232,0.002,94846.0,94845.0,0.16154624]
[1739368392432,0.002,94846.0,94845.0,0.158152]
[1739368392651,0.002,94846.0,94845.0,0.00735117]
[1739368393090,0.02115493,94846.0,94845.0,0.00735117]
[1739368393305,0.27365858,94846.0,94845.0,0.00735117]
[1739368393514,0.27365858,94846.0,94824.0,0.0001066]
[1739368393515,0.40055858,94846.0,94824.0,0.0001066]
[1739368393749,0.10382178,94845.0,94824.0,0.0001066]
[1739368394011,0.10382178,94845.0,94825.0,0.00399434]
[1739368394246,0.04994483,94844.0,94825.0,0.00399434]
[1739368394485,0.10382178,94843.0,94825.0,0.00399434]
[1739368395222,0.10382178,94843.0,94824.0,0.0001066]
[1739368395710,0.00962316,94842.0,94825.0,0.00400377]
[1739368395945,0.10382188,94841.0,94824.0,0.0001066]
[1739368396652,0.17932899,94840.0,94824.0,0.0001066]
[1739368396871,0.15,94838.0,94824.0,0.0001066]
[1739368397077,0.15,94836.0,94824.0,0.0001066]
[1739368397288,0.15,94834.0,94824.0,0.0001066]
[1739368397487,0.10382194,94833.0,94824.0,0.0001066]
[1739368398305,0.00962316,94832.0,94824.0,0.0001066]
[1739368398456,0.15,94830.0,94806.0,0.210956]
[1739368398680,0.15,94828.0,94807.0,0.00347876]
[1739368398885,0.15,94826.0,94807.0,0.00753659]
[1739368399142,0.10382197,94825.0,94807.0,0.00753659]
[1739368399957,0.0791,94823.0,94806.0,0.00013339]
[1739368400175,0.10382206,94822.0,94806.0,0.00013339]
[1739368400379,0.2291,94814.0,94806.0,0.00013339]
[1739368400599,0.00131876,94813.0,94805.0,1e-08]
[1739368401425,0.11212681,94812.0,94805.0,1e-08]
[1739368401630,0.15131856,94811.0,94805.0,1e-08]
[1739368401879,0.15131856,94811.0,94761.0,0.023]
[1739368401880,0.15,94809.0,94750.0,0.26931502]
[1739368402076,0.15,94807.0,94776.0,0.0005349]
[1739368402288,0.10382237,94806.0,94776.0,0.00474978]
[1739368402517,0.10382237,94806.0,94776.0,0.00421488]
[1739368402716,0.11344553,94806.0,94776.0,0.00421488]
[1739368402934,0.15,94801.0,94776.0,0.00421488]
[1739368403148,0.04891886,94800.0,94776.0,0.00421488]
[1739368403356,0.15,94798.0,94775.0,0.00013341]
[1739368403565,0.15,94796.0,94763.0,0.0846431]
[1739368403758,0.10250365,94795.0,94764.0,0.00053513]
[1739368403997,0.00013307,94796.0,94773.0,0.0846431]
[1739368404250,0.01915493,94795.0,94776.0,0.15]
[1739368404457,0.01915493,94795.0,94789.0,0.15]
[1739368404662,0.10250365,94794.0,94777.0,0.00174039]
[1739368404877,0.10382222,94794.0,94790.0,0.00172162]
[1739368405078,0.10382222,94794.0,94767.0,0.158282]
[1739368405285,0.10250365,94794.0,94767.0,0.211043]
[1739368405488,0.10250365,94794.0,94768.0,0.00173637]
[1739368405489,0.0204737,94793.0,94768.0,0.00173637]
[1739368405699,0.10250365,94792.0,94768.0,0.00173637]
[1739368405903,0.00131884,94791.0,94768.0,0.00173637]
[1739368406108,0.1279,94788.0,94768.0,0.00173637]
[1739368406324,0.10250365,94787.0,94768.0,0.00173637]
[1739368406524,0.10250365,94787.0,94761.0,0.211057]
[1739368406712,0.12165858,94787.0,94766.0,0.158284]
[1739368406917,0.12165858,94787.0,94773.0,0.158272]
[1739368407120,0.12165858,94787.0,94774.0,0.00173587]
[1739368407270,0.12297742,94787.0,94774.0,0.00173587]
[1739368407470,0.12297742,94787.0,94766.0,0.211044]
[1739368407691,0.12297742,94787.0,94767.0,0.00175391]
[1739368407897,0.02047377,94787.0,94767.0,0.00175391]
[1739368408055,0.01915493,94786.0,94776.0,0.158267]
[1739368408478,0.01915493,94786.0,94771.0,0.158274]
[1739368408816,0.01915493,94786.0,94756.0,0.00053504]
[1739368409015,0.01915493,94786.0,94776.0,0.158266]
[1739368409533,0.001,94786.0,94777.0,0.00395751]
[1739368409675,0.10250365,94785.0,94777.0,0.00395751]
[1739368410023,0.00954223,94795.0,94760.0,0.26920832]
[1739368410174,0.00954223,94795.0,94759.0,0.21106]
[1739368410175,0.10250365,94794.0,94787.0,0.158249]
[1739368410385,0.10250365,94794.0,94785.0,0.158251]
[1739368410727,0.10250365,94794.0,94770.0,0.26920832]
[1739368410728,0.10250365,94794.0,94765.0,0.211047]
[1739368410928,0.00131873,94793.0,94786.0,0.0035255]
[1739368411154,0.00954223,94795.0,94786.0,0.00393467]
[1739368411155,0.10250365,94792.0,94786.0,0.00393467]
[1739368411276,0.09250365,94792.0,94761.0,0.146]
[1739368411477,0.09250365,94792.0,94762.0,0.00053505]
[1739368411674,0.09250365,94792.0,94780.0,0.15826]
[1739368411931,0.09250365,94792.0,94785.0,0.158251]
[1739368412130,0.09250365,94792.0,94784.0,0.158254]
[1739368412330,0.09250365,94792.0,94786.0,0.00393467]
[1739368412573,0.09250365,94792.0,94785.0,0.00393721]
[1739368412773,0.00131873,94791.0,94770.0,0.211036]
[1739368412977,0.001,94792.0,94777.0,0.158265]
[1739368413153,0.10350365,94792.0,94771.0,0.00397274]
[1739368413521,0.10250365,94792.0,94781.0,0.158259]
[1739368413738,0.10750365,94792.0,94784.0,0.158253]
[1739368413911,0.005,94792.0,94782.0,0.00394482]
[1739368414132,0.005,94792.0,94791.0,0.158242]
[1739368414363,0.005,94792.0,94791.0,0.15877633]
[1739368414539,0.005,94792.0,94791.0,0.16268949]
[1739368414943,0.00013307,94796.0,94795.0,0.308236]
[1739368415147,0.00013307,94796.0,94795.0,0.47893965]
[1739368415297,0.00013307,94796.0,94795.0,0.48281431]
[1739368415499,0.0846431,94841.0,94840.0,0.158161]
[1739368415717,0.08477649,94841.0,94840.0,0.16192152]
[1739368415914,0.00013339,94841.0,94840.0,0.16192152]
[1739368416114,0.00013339,94841.0,94840.0,0.16245453]
[1739368416333,0.00013339,94841.0,94840.0,0.26495818]
[1739368416527,0.00013339,94841.0,94840.0,0.16192152]
[1739368417149,0.00013339,94841.0,94840.0,0.26495834]
[1739368417310,0.00013339,94841.0,94840.0,0.43742517]
[1739368418130,0.00035726,94841.0,94840.0,0.43742517]
[1739368418685,0.00235726,94841.0,94840.0,0.43742517]
[1739368419232,0.00035726,94841.0,94840.0,0.43742517]
[1739368419477,0.00235726,94841.0,94840.0,0.43742517]
[1739368419641,0.00235726,94841.0,94840.0,0.41442517]
[1739368419846,0.00235726,94841.0,94840.0,0.31192152]
[1739368420119,0.00235726,94841.0,94840.0,0.16192152]
[1739368420536,0.00035726,94841.0,94840.0,0.16192152]
[1739368420769,0.02144969,94868.0,94840.0,0.00376052]
[1739368420954,0.00954755,94877.0,94850.0,0.26920832]
[1739368421169,0.10250365,94876.0,94863.0,0.158122]
[1739368421394,0.10250365,94876.0,94862.0,0.210832]
[1739368421572,0.10250365,94876.0,94864.0,0.00364225]
[1739368421770,0.10250365,94876.0,94863.0,0.16176578]
[1739368422018,0.10250365,94876.0,94865.0,0.00363971]
[1739368422196,0.00954755,94877.0,94876.0,0.158101]
[1739368422350,0.01909449,94882.0,94874.0,0.158103]
[1739368422552,0.01909449,94882.0,94876.0,0.00693719]
[1739368422988,0.10250365,94881.0,94876.0,0.00693719]
[1739368423156,0.10328827,94881.0,94876.0,0.00693719]
[1739368423365,0.10328827,94881.0,94854.0,0.158137]
[1739368423806,0.0775,94880.0,94855.0,0.0846431]
[1739368424001,0.10328827,94879.0,94855.0,0.0846431]
[1739368424533,0.10328827,94879.0,94858.0,0.158131]
[1739368424783,0.10328827,94879.0,94857.0,0.158131]
[1739368425024,0.10328827,94879.0,94858.0,0.15813]
[1739368425217,0.10328827,94879.0,94858.0,0.15]
[1739368425591,0.00078462,94879.0,94858.0,0.15]
[1739368425787,0.00044472,94883.0,94861.0,0.15]
[1739368425981,0.009,94879.0,94868.0,0.158114]
[1739368426183,0.009,94879.0,94857.0,0.001]
[1739368426414,0.009,94879.0,94873.0,0.158105]
[1739368426613,0.00044472,94883.0,94873.0,0.158105]
[1739368427054,0.00044472,94883.0,94864.0,0.210827]
[1739368427055,0.004,94879.0,94864.0,0.210827]
[1739368427288,0.004,94879.0,94855.0,0.15]
[1739368427497,0.004,94879.0,94869.0,0.158111]
[1739368427717,0.004,94879.0,94855.0,0.15]
[1739368427926,0.004,94879.0,94871.0,0.158108]
[1739368428127,0.004,94879.0,94872.0,0.158107]
[1739368428337,0.00044472,94883.0,94872.0,0.00105401]
[1739368428579,0.00044472,94883.0,94878.0,0.158097]
[1739368428816,0.00344472,94883.0,94860.0,0.26920832]
[1739368429079,0.00344472,94883.0,94852.0,0.2954961]
[1739368429080,0.00344472,94883.0,94881.0,0.158092]
[1739368429282,0.00044472,94883.0,94881.0,0.158092]
[1739368429482,0.00044472,94883.0,94866.0,0.210821]
[1739368429734,0.00044472,94883.0,94881.0,0.158091]
[1739368429972,0.00044472,94883.0,94882.0,0.00079559]
[1739368430220,0.00044472,94883.0,94882.0,0.02379559]
[1739368430462,0.00044472,94883.0,94882.0,0.15]
[1739368431218,0.00044472,94883.0,94881.0,0.158091]
[1739368431219,0.00044472,94883.0,94881.0,0.001]
[1739368431423,0.00044472,94883.0,94882.0,0.158091]
[1739368431640,0.00044472,94883.0,94882.0,0.15888668]
[1739368431847,0.00044472,94883.0,94882.0,0.43439033]
[1739368432060,0.00044472,94883.0,94882.0,0.43359465]
[1739368433092,0.00044472,94883.0,94882.0,0.85374665]
[1739368433298,7.2e-07,94883.0,94882.0,0.87005913]
[1739368433504,0.0809,94941.0,94883.0,1.944957]
[1739368433709,0.00035748,94935.0,94910.0,0.26920832]
[1739368433916,0.00035748,94935.0,94911.0,0.25329825]
[1739368434119,0.00035748,94935.0,94930.0,0.15801]
[1739368434324,0.00035748,94935.0,94914.0,0.210717]
[1739368434325,0.00035748,94935.0,94928.0,0.158013]
[1739368434589,0.0846431,94932.0,94892.0,0.210764]
[1739368435044,0.0771,94930.0,94902.0,0.158057]
[1739368435045,0.0771,94930.0,94895.0,0.0846431]
[1739368435289,0.14890365,94929.0,94897.0,0.210754]
[1739368435502,0.14890365,94929.0,94898.0,0.15079508]
[1739368435914,0.10250365,94929.0,94898.0,0.15079508]
[1739368436122,0.10250365,94929.0,94906.0,0.158049]
[1739368436330,0.00131682,94928.0,94898.0,0.15]
[1739368436541,0.10250365,94927.0,94897.0,0.15]
[1739368436747,0.00131701,94926.0,94894.0,0.15]
[1739368436943,0.25250365,94924.0,94882.0,0.0846431]
[1739368437153,0.05121715,94923.0,94886.0,0.158084]
[1739368437363,0.13468494,94922.0,94884.0,0.00079567]
[1739368437573,0.00131715,94921.0,94892.0,0.158074]
[1739368437776,0.10250365,94920.0,94893.0,0.158071]
[1739368438009,0.00131715,94919.0,94894.0,0.15807]
[1739368438266,0.10250365,94919.0,94900.0,0.15806]
[1739368438502,0.0499,94923.0,94901.0,0.158058]
[1739368438503,0.10250365,94918.0,94901.0,0.158058]
[1739368438752,0.10250365,94918.0,94884.0,0.10250365]
[1739368439227,0.10250365,94918.0,94904.0,0.158053]
[1739368439472,0.10250365,94918.0,94890.0,0.26920832]
[1739368439704,0.10250365,94917.0,94885.0,0.15]
[1739368439943,0.00131707,94916.0,94880.0,0.15]
[1739368440199,0.10250365,94915.0,94890.0,0.158077]
[1739368440448,0.00131707,94914.0,94887.0,0.15]
[1739368440708,0.10250365,94913.0,94884.0,0.210782]
[1739368440945,0.08281719,94912.0,94860.0,0.48004332]
[1739368441161,0.14750365,94911.0,94860.0,0.225235]
[1739368441386,0.001,94883.0,94882.0,0.012]
[1739368442014,0.00131733,94904.0,94880.0,0.360792]
[1739368442167,0.10250365,94903.0,94886.0,0.158083]
[1739368442374,0.10250365,94903.0,94881.0,0.21079]
[1739368442605,0.10263698,94903.0,94880.0,0.15]
[1739368442808,0.00013333,94903.0,94901.0,0.158058]
[1739368443409,0.00013333,94903.0,94894.0,0.210759]
[1739368443624,0.00013333,94903.0,94899.0,0.158061]
[1739368443824,0.00013333,94903.0,94888.0,0.210773]
[1739368444064,0.00013333,94903.0,94901.0,0.158059]
[1739368444371,0.00035699,94903.0,94901.0,0.158059]
[1739368445550,0.00035699,94903.0,94902.0,0.15]
[1739368445764,0.00135699,94903.0,94902.0,0.25250365]
[1739368446510,0.00035699,94903.0,94902.0,0.25250365]
[1739368447354,0.00035699,94903.0,94902.0,0.43356065]
[1739368447632,0.00035699,94903.0,94902.0,1.08131965]
[1739368447866,0.00135699,94903.0,94902.0,1.08831965]
[1739368448274,9.9e-07,94903.0,94902.0,1.08831965]
[1739368448470,0.01919046,94934.0,94903.0,0.023]
[1739368448705,0.00022428,94936.0,94934.0,0.308004]
[1739368448851,0.00035731,94935.0,94934.0,0.41050765]
[1739368450926,0.00035731,94935.0,94934.0,0.41750765]
[1739368451124,0.00035731,94935.0,94934.0,0.41050765]
[1739368451355,0.00135731,94935.0,94934.0,0.43250765]
[1739368451790,0.00035731,94935.0,94934.0,0.44050765]
[1739368451993,0.00035731,94935.0,94934.0,1.17928152]
[1739368452172,0.00135731,94935.0,94934.0,1.48709152]
[1739368452346,0.00135731,94935.0,94934.0,1.46409152]
[1739368452589,0.00035731,94935.0,94934.0,1.47209152]
[1739368452854,0.00022366,94964.0,94959.0,0.307962]
[1739368453089,0.00022366,94964.0,94959.0,0.41046565]
[1739368453238,0.00022366,94964.0,94959.0,0.43346565]
[1739368454150,0.00022366,94964.0,94959.0,0.41046565]
[1739368454573,0.00022366,94964.0,94959.0,0.44980245]
[1739368454951,0.00022366,94964.0,94959.0,0.86965545]
[1739368455168,0.00022366,94964.0,94959.0,0.87665545]
[1739368455563,0.00022366,94964.0,94959.0,0.66583545]
[1739368455771,0.00022366,94964.0,94959.0,0.67383545]
[1739368455984,0.00022366,94964.0,94959.0,0.51470245]
[1739368456147,0.00022366,94964.0,94959.0,0.52170245]
[1739368456351,0.00022366,94964.0,94959.0,0.49870245]
[1739368456602,0.00022366,94964.0,94959.0,0.52170245]
[1739368457205,0.00022366,94964.0,94959.0,0.50670245]
[1739368457576,0.00022366,94964.0,94959.0,0.52170245]
[1739368458020,0.00022366,94964.0,94959.0,0.43246565]
[1739368459010,0.00022366,94964.0,94959.0,0.43346565]
[1739368459268,0.00022366,94964.0,94963.0,0.157956]
[1739368459467,8.7e-07,94964.0,94963.0,1.93345965]
[1739368459673,8.7e-07,94964.0,94963.0,3.43765665]
[1739368459869,0.00022428,94976.0,94973.0,0.157939]
[1739368460044,0.00022428,94976.0,94973.0,0.41044265]
[1739368461562,0.00022428,94976.0,94973.0,0.41744265]
[1739368461792,0.00022428,94976.0,94973.0,0.12450365]
[1739368461936,0.00022428,94976.0,94960.0,0.41454731]
[1739368461937,0.157947,94969.0,94912.0,0.15804]
[1739368462139,0.0034,94973.0,94951.0,0.00013321]
[1739368462140,0.0034,94967.0,94951.0,0.00013321]
[1739368462327,0.0034,94965.0,94951.0,0.00013321]
[1739368462528,0.00131691,94964.0,94951.0,0.00013321]
[1739368462973,0.0463,94963.0,94951.0,0.00013321]
[1739368463449,0.0463,94963.0,94921.0,0.210701]
[1739368463644,0.00955165,94962.0,94922.0,0.210699]
[1739368463895,0.10250365,94961.0,94922.0,0.31320265]
[1739368464329,0.10250365,94961.0,94951.0,0.001]
[1739368464530,0.00131637,94960.0,94951.0,0.001]
[1739368464841,0.10250365,94959.0,94923.0,0.33693609]
[1739368465047,0.10250365,94958.0,94945.0,0.33693609]
[1739368465299,0.15772,94997.0,94941.0,0.210657]
[1739368465300,0.012,94961.0,94941.0,0.210657]
[1739368465511,0.012,94961.0,94935.0,0.33693609]
[1739368465512,0.012,94961.0,94942.0,0.10250365]
[1739368465688,0.012,94961.0,94957.0,0.157965]
[1739368465920,0.012,94961.0,94949.0,0.210637]
[1739368466472,0.012,94961.0,94945.0,0.210646]
[1739368466674,0.012,94961.0,94942.0,0.10250365]
[1739368466675,0.00035744,94974.0,94942.0,0.10250365]
[1739368466859,0.011,94960.0,94951.0,0.001]
[1739368467259,0.10286109,94974.0,94951.0,0.003]
[1739368467460,0.10250365,94973.0,94940.0,0.157993]
[1739368467834,0.10250365,94973.0,94945.0,0.003]
[1739368467835,0.00131619,94972.0,94945.0,0.003]
[1739368468039,0.00035744,94974.0,94945.0,0.003]
[1739368468040,0.10250365,94971.0,94945.0,0.003]
[1739368468187,0.10250365,94971.0,94941.0,0.1501064]
[1739368468388,0.10250365,94971.0,94951.0,0.008]
[1739368468799,0.10250365,94971.0,94951.0,0.001]
[1739368469381,0.10381989,94971.0,94951.0,0.001]
[1739368470201,0.10381989,94971.0,94945.0,0.007]
[1739368470368,0.10381989,94971.0,94941.0,0.0001064]
[1739368470586,0.10750365,94971.0,94951.0,0.007]
[1739368470781,0.10750365,94971.0,94941.0,0.0001064]
[1739368471027,0.10250365,94971.0,94941.0,0.0001064]
[1739368471225,0.10250365,94971.0,94951.0,0.003]
[1739368471423,0.11250365,94971.0,94959.0,0.157962]
[1739368471599,0.01,94971.0,94969.0,0.157945]
[1739368471782,0.00035744,94974.0,94951.0,0.003]
[1739368471986,0.00035744,94974.0,94953.0,0.15]
[1739368472229,0.01,94971.0,94966.0,0.157949]
[1739368472427,0.01,94971.0,94953.0,0.15]
[1739368472602,0.01,94971.0,94963.0,0.157955]
[1739368472855,0.01,94971.0,94953.0,0.15]
[1739368473028,0.01,94971.0,94970.0,0.157944]
[1739368473429,0.00035744,94974.0,94973.0,0.157939]
[1739368473634,0.00035744,94974.0,94973.0,0.307939]
[1739368474806,0.00035744,94974.0,94973.0,0.314939]
[1739368474952,0.00035744,94974.0,94973.0,0.307939]
[1739368475131,0.00135744,94974.0,94973.0,0.319939]
[1739368475967,0.00135744,94974.0,94973.0,0.42244265]
[1739368476367,0.00035744,94974.0,94973.0,0.41744265]
[1739368476564,0.00035744,94974.0,94973.0,0.41044265]
[1739368476765,0.00035744,94974.0,94973.0,0.42144265]
[1739368477187,0.00035744,94974.0,94973.0,0.311939]
[1739368477365,0.00035744,94974.0,94973.0,0.157]
[1739368477564,0.00135744,94974.0,94973.0,0.323939]
[1739368478265,0.00135744,94974.0,94973.0,0.166939]
[1739368478473,0.00135744,94974.0,94973.0,0.016]
[1739368478683,0.10286109,94974.0,94973.0,0.007]
[1739368479989,0.10386109,94974.0,94973.0,0.017]
[1739368480544,0.00035744,94974.0,94973.0,0.007]
[1739368480895,0.00135744,94974.0,94973.0,0.023]
[1739368481307,0.00035744,94974.0,94973.0,0.171939]
[1739368481714,0.00135744,94974.0,94973.0,0.180939]
[1739368481918,0.00135744,94974.0,94973.0,0.166939]
[1739368482119,0.00135744,94974.0,94973.0,0.173939]
[1739368482502,0.00135744,94974.0,94973.0,0.166939]
[1739368482706,0.00135744,94974.0,94973.0,0.316939]
[1739368482930,0.00135744,94974.0,94973.0,0.42644265]
[1739368483036,0.00035744,94974.0,94973.0,0.44044265]
[1739368483237,0.00135744,94974.0,94973.0,0.45044265]
[1739368483881,0.00035744,94974.0,94973.0,0.44044265]
[1739368484086,0.00135744,94974.0,94973.0,0.44844265]
[1739368484293,0.00135744,94974.0,94973.0,0.49344265]
[1739368484495,0.00135744,94974.0,94973.0,0.75470865]
[1739368484908,0.00135744,94974.0,94973.0,0.50044265]
[1739368485125,0.00135744,94974.0,94973.0,0.61870265]
[1739368485289,0.00135744,94974.0,94973.0,0.50772265]
[1739368485489,0.00135744,94974.0,94973.0,0.51472265]
[1739368485830,0.00135744,94974.0,94973.0,0.50772265]
[1739368486255,0.00035744,94974.0,94973.0,0.49272265]
[1739368486392,0.00135744,94974.0,94973.0,0.50772265]
[1739368486910,0.00035744,94974.0,94973.0,0.49272265]
[1739368487253,0.00135744,94974.0,94973.0,0.51472265]
[1739368487624,0.00035744,94974.0,94973.0,0.49972265]
[1739368487858,0.00035744,94974.0,94973.0,0.49772265]
[1739368488054,0.00135744,94974.0,94973.0,0.51272265]
[1739368488458,0.00135744,94974.0,94973.0,0.50572265]
[1739368488662,0.00135744,94974.0,94973.0,0.50372265]
[1739368488871,0.00135744,94974.0,94973.0,0.51072265]
[1739368489065,0.00135744,94974.0,94973.0,0.50372265]
[1739368489409,0.00135744,94974.0,94973.0,1.30665165]
[1739368489627,0.00035744,94974.0,94973.0,1.25912365]
[1739368490318,0.00035744,94974.0,94973.0,0.93714565]
[1739368490508,0.00035744,94974.0,94973.0,0.77987865]
[1739368490666,0.00035744,94974.0,94973.0,0.78687865]
[1739368491048,0.00035744,94974.0,94973.0,0.77987865]
[1739368491253,0.00035744,94974.0,94973.0,0.73025765]
[1739368491459,0.00035744,94974.0,94973.0,2.23725765]
[1739368491747,0.00035744,94974.0,94973.0,2.23025765]
[1739368491918,4.4e-07,94974.0,94973.0,2.23025765]
[1739368492121,3.8e-07,94982.0,94981.0,0.307926]
[1739368492321,3.8e-07,94982.0,94981.0,0.43342965]
[1739368492322,3e-07,94982.0,94981.0,0.43342965]
[1739368493038,3e-07,94982.0,94981.0,1.93342965]
[1739368494409,3e-07,94982.0,94981.0,2.01282965]
[1739368494818,3e-07,94982.0,94981.0,2.03482965]
[1739368495067,3e-07,94982.0,94981.0,2.02782965]
[1739368495466,3e-07,94982.0,94981.0,2.03482965]
[1739368495673,3e-07,94982.0,94981.0,2.02782965]
[1739368496125,0.00022387,94998.0,94997.0,0.307899]
[1739368496351,0.00022387,94998.0,94997.0,0.43340265]
[1739368497385,0.00122387,94998.0,94997.0,0.44740265]
[1739368497636,0.00122387,94998.0,94997.0,0.69444465]
[1739368497878,0.00122387,94998.0,94997.0,0.68044465]
[1739368497879,0.00022387,94998.0,94997.0,0.68044465]
[1739368498071,0.00122387,94998.0,94997.0,0.70244465]
[1739368498225,0.00122387,94998.0,94997.0,0.44840265]
[1739368498586,0.00122387,94998.0,94997.0,0.45540265]
[1739368498788,0.00122387,94998.0,94997.0,0.42540265]
[1739368499094,0.00122387,94998.0,94997.0,0.172899]
[1739368499343,0.00022387,94998.0,94997.0,0.007]
[1739368499514,0.00022387,94998.0,94997.0,0.179899]
[1739368499726,0.00022387,94998.0,94997.0,0.022]
[1739368500072,0.00022387,94998.0,94997.0,0.007]
[1739368500393,0.00022387,94998.0,94997.0,0.022]
[1739368500549,0.00022387,94998.0,94997.0,0.179899]
[1739368500752,0.00022387,94998.0,94997.0,0.022]
[1739368500969,0.00022387,94998.0,94997.0,0.314899]
[1739368501153,0.00022387,94998.0,94997.0,0.307899]
[1739368501353,0.00622387,94998.0,94997.0,0.314899]
[1739368501755,0.00622387,94998.0,94997.0,0.307899]
[1739368502132,0.00622387,94998.0,94997.0,0.32793016]
[1739368502345,0.00622387,94998.0,94997.0,0.307899]
[1739368502548,0.00622387,94998.0,94997.0,0.314899]
[1739368503026,0.00022387,94998.0,94997.0,0.41040265]
[1739368503432,0.00022387,94998.0,94997.0,0.43340265]
[1739368503747,0.00022387,94998.0,94997.0,0.69483465]
[1739368504151,0.00122387,94998.0,94997.0,0.70983465]
[1739368504331,0.00122387,94998.0,94997.0,2.21683465]
[1739368504332,0.00113124,94998.0,94997.0,2.21683465]
[1739368504526,0.00013124,94998.0,94997.0,2.19483465]
[1739368504955,0.00113124,94998.0,94997.0,2.21683465]
[1739368505235,0.00113124,94998.0,94997.0,2.20983465]
[1739368505446,1e-08,94998.0,94997.0,2.21683465]
[1739368505620,1e-08,95007.0,95004.0,0.023]
[1739368505849,0.00013311,95007.0,95006.0,0.43338765]
[1739368506072,0.00013311,95007.0,95006.0,1.37752265]
[1739368506277,0.00013311,95007.0,95006.0,1.68153665]
[1739368506482,0.00013311,95007.0,95006.0,1.18009092]
[1739368506690,0.00013311,95007.0,95006.0,0.45397392]
[1739368506877,0.00013311,95013.0,95012.0,0.330874]
[1739368507082,0.00022408,95025.0,95024.0,0.307854]
[1739368507296,0.00022408,95025.0,95024.0,0.43335765]
[1739368507496,0.00022408,95025.0,95024.0,2.70870165]
[1739368507698,0.00022408,95025.0,95024.0,2.27119365]
[1739368508284,0.00022408,95025.0,95024.0,0.42535765]
[1739368508458,0.00022408,95025.0,95024.0,0.322854]
[1739368509297,0.023,95076.0,95024.0,0.022]
[1739368509531,0.00013312,95068.0,95040.0,0.157827]
[1739368509759,0.00962001,95063.0,95041.0,0.00105202]
[1739368509973,0.10250365,95062.0,95041.0,0.00105202]
[1739368510176,0.10250365,95062.0,95044.0,0.15782]
[1739368510385,0.10250365,95062.0,95041.0,0.15887702]
[1739368510613,0.00131493,95061.0,95031.0,0.360456]
[1739368510819,0.10250365,95060.0,95039.0,0.157828]
[1739368511023,0.10250365,95060.0,95044.0,0.15782]
[1739368511216,0.10250365,95060.0,95032.0,0.00105202]
[1739368511217,0.10250365,95060.0,95045.0,0.157819]
[1739368511467,0.10250365,95060.0,95038.0,0.00105202]
[1739368511693,0.10250365,95060.0,95030.0,0.01339529]
[1739368511905,0.10250365,95060.0,95034.0,0.21045]
[1739368512114,0.10250365,95060.0,95035.0,0.00105202]
[1739368512350,0.0479,95057.0,95031.0,0.007]
[1739368512556,0.10381888,95056.0,95045.0,0.007]
[1739368512769,0.10381888,95056.0,95029.0,0.01318649]
[1739368513198,0.10381888,95056.0,95028.0,0.15]
[1739368513403,0.10250365,95048.0,94990.0,0.223596]
[1739368513621,0.00131534,95047.0,95006.0,0.210511]
[1739368513842,0.0798,95046.0,95045.0,0.001]
[1739368514035,0.0798,95046.0,95011.0,0.01357883]
[1739368514242,0.10381904,95045.0,95034.0,0.007]
[1739368514467,0.10250365,95044.0,95034.0,0.007]
[1739368514681,0.10250365,95041.0,95034.0,0.007]
[1739368514898,0.00131543,95040.0,95034.0,0.007]